[Event "Early-Titled-Tuesday-Blitz-February-06-2024"]
[Site "Chess.com"]
[Date "2024.02.06"]
[Round "8"]
[White "amanjazu"]
[Black "hakanazeri2"]
[Result "1-0"]
[WhiteElo "2476"]
[BlackElo "2639"]
[TimeControl "180+1"]
[EndTime "9:29:19 PST"]
[Termination "amanjazu won on time"]

1. g3 {[%clk 0:03:00.9]} 1... d5 {[%clk 0:02:55.2]} 2. Bg2 {[%clk 0:03:01.8]}
2... c6 {[%clk 0:02:56.1]} 3. f4 {[%clk 0:03:02.4]} 3... Nf6 {[%clk 0:02:57]} 4.
Nf3 {[%clk 0:03:03]} 4... g6 {[%clk 0:02:57.6]} 5. O-O {[%clk 0:03:03.9]} 5...
Bg7 {[%clk 0:02:58.5]} 6. d3 {[%clk 0:03:04.8]} 6... O-O {[%clk 0:02:59.4]} 7.
Nc3 {[%clk 0:03:05.7]} 7... Nbd7 {[%clk 0:02:59.7]} 8. e4 {[%clk 0:03:06.2]}
8... Re8 {[%clk 0:03:00.4]} 9. e5 {[%clk 0:03:06.3]} 9... Ng4 {[%clk 0:02:54.3]}
10. d4 {[%clk 0:03:03.4]} 10... e6 {[%clk 0:02:41.1]} 11. h3 {[%clk 0:03:02.1]}
11... Nh6 {[%clk 0:02:40.8]} 12. g4 {[%clk 0:03:01.7]} 12... c5 {[%clk
0:02:37.4]} 13. Ne2 {[%clk 0:03:00.6]} 13... b6 {[%clk 0:02:08.5]} 14. Be3
{[%clk 0:02:59.6]} 14... Ba6 {[%clk 0:02:07.2]} 15. Kh2 {[%clk 0:02:56.6]} 15...
f6 {[%clk 0:02:00.1]} 16. c3 {[%clk 0:02:47.7]} 16... Nf7 {[%clk 0:01:55.5]} 17.
Rf2 {[%clk 0:02:46.1]} 17... cxd4 {[%clk 0:01:51.3]} 18. cxd4 {[%clk 0:02:45.6]}
18... Rc8 {[%clk 0:01:38.4]} 19. Ng3 {[%clk 0:02:43.2]} 19... f5 {[%clk
0:01:33.7]} 20. g5 {[%clk 0:02:40.8]} 20... Nf8 {[%clk 0:01:17.5]} 21. h4 {[%clk
0:02:40.9]} 21... Rc6 {[%clk 0:01:04.3]} 22. h5 {[%clk 0:02:40.3]} 22... Qc7
{[%clk 0:01:04.1]} 23. Rc1 {[%clk 0:02:32.7]} 23... Rxc1 {[%clk 0:01:02.3]} 24.
Bxc1 {[%clk 0:02:30.1]} 24... Rc8 {[%clk 0:01:00.3]} 25. Be3 {[%clk 0:02:29.2]}
25... Qc4 {[%clk 0:00:54]} 26. a3 {[%clk 0:02:24.3]} 26... Bb5 {[%clk
0:00:51.4]} 27. Bf1 {[%clk 0:02:19.1]} 27... Qa4 {[%clk 0:00:49.5]} 28. Qe1
{[%clk 0:02:08.1]} 28... Bxf1 {[%clk 0:00:46.7]} 29. Qxf1 {[%clk 0:02:09]} 29...
Rc2 {[%clk 0:00:43.9]} 30. Rxc2 {[%clk 0:01:48.7]} 30... Qxc2+ {[%clk
0:00:44.8]} 31. Qg2 {[%clk 0:01:47]} 31... Qd3 {[%clk 0:00:40.6]} 32. Qd2 {[%clk
0:01:44.3]} 32... Qxd2+ {[%clk 0:00:36.5]} 33. Nxd2 {[%clk 0:01:45.1]} 33... h6
{[%clk 0:00:35.9]} 34. Kg2 {[%clk 0:01:34.9]} 34... hxg5 {[%clk 0:00:18]} 35.
fxg5 {[%clk 0:01:32.3]} 35... gxh5 {[%clk 0:00:16.5]} 36. Nxh5 {[%clk
0:01:32.8]} 36... Ng6 {[%clk 0:00:16.7]} 37. Kg3 {[%clk 0:01:28.9]} 37... Kf8
{[%clk 0:00:12.4]} 38. Nf3 {[%clk 0:01:29]} 38... Kg8 {[%clk 0:00:12]} 39. Nh4
{[%clk 0:01:29.3]} 39... Nfh8 {[%clk 0:00:10.4]} 40. Ng2 {[%clk 0:01:10.2]}
40... Kf7 {[%clk 0:00:08.2]} 41. Ne1 {[%clk 0:01:04]} 41... Ne7 {[%clk
0:00:06.6]} 42. Nd3 {[%clk 0:01:03.5]} 42... Nhg6 {[%clk 0:00:06.4]} 43. Nb4
{[%clk 0:01:03.4]} 43... Bf8 {[%clk 0:00:05.4]} 44. Nf6 {[%clk 0:01:03.1]} 44...
f4+ {[%clk 0:00:05.1]} 45. Bxf4 {[%clk 0:00:59.1]} 45... Nf5+ {[%clk 0:00:05.7]}
46. Kg4 {[%clk 0:00:57.3]} 46... Bxb4 {[%clk 0:00:06.6]} 47. axb4 {[%clk
0:00:56.6]} 47... Nxd4 {[%clk 0:00:07]} 48. Nd7 {[%clk 0:00:49.4]} 48... Nc6
{[%clk 0:00:04.3]} 49. b5 {[%clk 0:00:49]} 49... Nd4 {[%clk 0:00:04.6]} 50. Nb8
{[%clk 0:00:45.5]} 50... Nxb5 {[%clk 0:00:03.8]} 51. Nc6 {[%clk 0:00:45.8]}
51... a5 {[%clk 0:00:04.2]} 52. Be3 {[%clk 0:00:44.6]} 52... d4 {[%clk
0:00:04.6]} 53. Bg1 {[%clk 0:00:28.6]} 53... d3 {[%clk 0:00:04.1]} 54. Be3
{[%clk 0:00:28.7]} 54... Nc7 {[%clk 0:00:04.2]} 55. Kf3 {[%clk 0:00:28]} 55...
Nd5 {[%clk 0:00:04.3]} 56. Bd2 {[%clk 0:00:25.3]} 56... Ke8 {[%clk 0:00:02]} 57.
Ke4 {[%clk 0:00:25.2]} 57... Kd7 {[%clk 0:00:02.6]} 58. Nd4 {[%clk 0:00:25.6]}
58... a4 {[%clk 0:00:01.9]} 59. Nf3 {[%clk 0:00:25.3]} 1-0

[Event "Early-Titled-Tuesday-Blitz-February-06-2024"]
[Site "Chess.com"]
[Date "2024.02.06"]
[Round "8"]
[White "Elnaz_Kaliakhmet"]
[Black "Dinosaurio_1975"]
[Result "1/2-1/2"]
[WhiteElo "2286"]
[BlackElo "2589"]
[TimeControl "180+1"]
[EndTime "9:29:19 PST"]
[Termination "Game drawn by repetition"]

1. e4 {[%clk 0:02:21.2]} 1... c6 {[%clk 0:02:53.7]} 2. d4 {[%clk 0:02:08.7]}
2... d5 {[%clk 0:02:54.6]} 3. Nc3 {[%clk 0:02:09]} 3... dxe4 {[%clk 0:02:50.5]}
4. Nxe4 {[%clk 0:02:09.9]} 4... Nf6 {[%clk 0:02:50.8]} 5. Nxf6+ {[%clk
0:02:08.6]} 5... exf6 {[%clk 0:02:51.7]} 6. Nf3 {[%clk 0:02:07.8]} 6... Bd6
{[%clk 0:02:51.9]} 7. Bd3 {[%clk 0:02:06.8]} 7... O-O {[%clk 0:02:52.8]} 8. O-O
{[%clk 0:02:06.5]} 8... Na6 {[%clk 0:02:52.1]} 9. c3 {[%clk 0:02:05.9]} 9... Nc7
{[%clk 0:02:51.3]} 10. Be3 {[%clk 0:02:05.3]} 10... Re8 {[%clk 0:02:50.9]} 11.
Qc2 {[%clk 0:02:05.2]} 11... g6 {[%clk 0:02:50.8]} 12. Rae1 {[%clk 0:02:02.3]}
12... Nd5 {[%clk 0:02:50.8]} 13. a3 {[%clk 0:01:58.5]} 13... Bg4 {[%clk
0:02:49]} 14. Nd2 {[%clk 0:01:53.7]} 14... Qc7 {[%clk 0:02:43.9]} 15. h3 {[%clk
0:01:51.1]} 15... Bd7 {[%clk 0:02:18]} 16. c4 {[%clk 0:01:50.5]} 16... Nxe3
{[%clk 0:02:11.2]} 17. fxe3 {[%clk 0:01:51.4]} 17... Bg3 {[%clk 0:02:11]} 18.
Re2 {[%clk 0:01:51]} 18... f5 {[%clk 0:02:11.3]} 19. e4 {[%clk 0:01:45]} 19...
fxe4 {[%clk 0:01:59.4]} 20. Nxe4 {[%clk 0:01:45.9]} 20... Bh4 {[%clk 0:01:59.1]}
21. Nf6+ {[%clk 0:01:38.4]} 21... Bxf6 {[%clk 0:01:57.5]} 22. Rxf6 {[%clk
0:01:39.3]} 22... Rxe2 {[%clk 0:01:56.7]} 23. Qxe2 {[%clk 0:01:40.2]} 23... Re8
{[%clk 0:01:56.1]} 24. Qf2 {[%clk 0:01:39.9]} 24... Be6 {[%clk 0:01:51.2]} 25.
b4 {[%clk 0:01:35.7]} 25... Qd7 {[%clk 0:01:45.2]} 26. Rf4 {[%clk 0:01:19.6]}
26... a5 {[%clk 0:01:31.7]} 27. b5 {[%clk 0:01:13.9]} 27... Qe7 {[%clk
0:01:20.9]} 28. bxc6 {[%clk 0:01:01.7]} 28... bxc6 {[%clk 0:01:21.8]} 29. c5
{[%clk 0:01:00.4]} 29... Bd5 {[%clk 0:01:05.2]} 30. Kh2 {[%clk 0:00:58]} 30...
Qe3 {[%clk 0:00:58.6]} 31. Qf1 {[%clk 0:00:44.2]} 31... Qd2 {[%clk 0:00:41.6]}
32. Rf2 {[%clk 0:00:39.6]} 32... Qc3 {[%clk 0:00:38.4]} 33. Rf4 {[%clk
0:00:29.6]} 33... Re1 {[%clk 0:00:36.3]} 34. Qf2 {[%clk 0:00:29.5]} 34... Rd1
{[%clk 0:00:23.5]} 35. Be2 {[%clk 0:00:21.6]} 35... Rd2 {[%clk 0:00:22.8]} 36.
Qe1 {[%clk 0:00:20.3]} 36... Qc2 {[%clk 0:00:21.1]} 37. Rf2 {[%clk 0:00:20]}
37... Bc4 {[%clk 0:00:13.9]} 38. Bd1 {[%clk 0:00:16.1]} 38... Rxf2 {[%clk
0:00:10.1]} 39. Bxc2 {[%clk 0:00:15.6]} 39... Rxc2 {[%clk 0:00:11]} 40. Qe8+
{[%clk 0:00:15.8]} 40... Kg7 {[%clk 0:00:11.4]} 41. Qxc6 {[%clk 0:00:16.3]}
41... Bf1 {[%clk 0:00:07.6]} 42. Qe4 {[%clk 0:00:13.3]} 42... Rxg2+ {[%clk
0:00:06.8]} 43. Qxg2 {[%clk 0:00:13.4]} 43... Bxg2 {[%clk 0:00:07.7]} 44. Kxg2
{[%clk 0:00:14]} 44... Kf6 {[%clk 0:00:08.6]} 45. Kf3 {[%clk 0:00:14.6]} 45...
Ke6 {[%clk 0:00:09.5]} 46. Kf4 {[%clk 0:00:14.2]} 46... f5 {[%clk 0:00:09.9]}
47. a4 {[%clk 0:00:14.3]} 47... h6 {[%clk 0:00:08.4]} 48. h4 {[%clk 0:00:14.6]}
48... Kf6 {[%clk 0:00:08.7]} 49. d5 {[%clk 0:00:14.5]} 49... g5+ {[%clk
0:00:09.2]} 50. hxg5+ {[%clk 0:00:14.1]} 50... hxg5+ {[%clk 0:00:10.1]} 51. Kf3
{[%clk 0:00:14.1]} 51... Ke5 {[%clk 0:00:11]} 52. d6 {[%clk 0:00:13.2]} 52...
Ke6 {[%clk 0:00:10.9]} 53. Kg3 {[%clk 0:00:13.1]} 53... Kd7 {[%clk 0:00:11]} 54.
Kf3 {[%clk 0:00:13.4]} 54... Kc6 {[%clk 0:00:11.9]} 55. Ke3 {[%clk 0:00:13.5]}
55... Kd7 {[%clk 0:00:11.2]} 56. Kd4 {[%clk 0:00:14]} 56... g4 {[%clk
0:00:10.8]} 57. Ke3 {[%clk 0:00:13.1]} 57... Kc6 {[%clk 0:00:10.5]} 58. Kf4
{[%clk 0:00:13.5]} 58... Kd7 {[%clk 0:00:10.3]} 59. Kg3 {[%clk 0:00:12.6]} 59...
Kc6 {[%clk 0:00:10.2]} 60. Kf4 {[%clk 0:00:13.2]} 60... Kd7 {[%clk 0:00:10.4]}
61. Kg3 {[%clk 0:00:13.8]} 61... Ke6 {[%clk 0:00:11]} 62. Kf4 {[%clk 0:00:14.1]}
62... Kd7 {[%clk 0:00:11]} 1/2-1/2

[Event "Early-Titled-Tuesday-Blitz-February-06-2024"]
[Site "Chess.com"]
[Date "2024.02.06"]
[Round "8"]
[White "winniethepooh04"]
[Black "Baby_Legs"]
[Result "1-0"]
[WhiteElo "2520"]
[BlackElo "2618"]
[TimeControl "180+1"]
[EndTime "9:29:20 PST"]
[Termination "winniethepooh04 won on time"]

1. d4 {[%clk 0:03:00.1]} 1... Nf6 {[%clk 0:03:00]} 2. Nf3 {[%clk 0:03:00]} 2...
e6 {[%clk 0:03:00.1]} 3. Bf4 {[%clk 0:03:00.4]} 3... d6 {[%clk 0:02:58.4]} 4. h3
{[%clk 0:03:00]} 4... g6 {[%clk 0:02:58.7]} 5. e3 {[%clk 0:03:00.5]} 5... Bg7
{[%clk 0:02:59.2]} 6. Be2 {[%clk 0:03:01.1]} 6... O-O {[%clk 0:02:59.8]} 7. O-O
{[%clk 0:03:01.7]} 7... b6 {[%clk 0:03:00.3]} 8. c4 {[%clk 0:03:01.5]} 8... Bb7
{[%clk 0:03:00.9]} 9. Nc3 {[%clk 0:03:02]} 9... Nbd7 {[%clk 0:03:01.4]} 10. Rc1
{[%clk 0:03:02.2]} 10... Qe7 {[%clk 0:03:01.4]} 11. b4 {[%clk 0:03:01.9]} 11...
e5 {[%clk 0:02:59.2]} 12. Bh2 {[%clk 0:03:01.8]} 12... a5 {[%clk 0:02:54.9]} 13.
a3 {[%clk 0:03:01.2]} 13... axb4 {[%clk 0:02:54.2]} 14. axb4 {[%clk 0:03:02.1]}
14... e4 {[%clk 0:02:39.5]} 15. Nd2 {[%clk 0:03:01.3]} 15... h5 {[%clk
0:02:37.2]} 16. Nb3 {[%clk 0:02:54.5]} 16... Rfc8 {[%clk 0:02:19.7]} 17. c5
{[%clk 0:02:49.9]} 17... Nd5 {[%clk 0:02:08.6]} 18. cxd6 {[%clk 0:02:45]} 18...
cxd6 {[%clk 0:02:05.6]} 19. Nb5 {[%clk 0:02:41]} 19... Rxc1 {[%clk 0:02:02.5]}
20. Qxc1 {[%clk 0:02:32.1]} 20... Ba6 {[%clk 0:01:51]} 21. Qd2 {[%clk
0:02:26.9]} 21... Bxb5 {[%clk 0:01:42.7]} 22. Bxb5 {[%clk 0:02:27.8]} 22... N7f6
{[%clk 0:01:35.9]} 23. Ra1 {[%clk 0:02:19.7]} 23... Rxa1+ {[%clk 0:01:34.7]} 24.
Nxa1 {[%clk 0:02:20.6]} 24... Qa7 {[%clk 0:01:34]} 25. Nc2 {[%clk 0:02:07.6]}
25... Bf8 {[%clk 0:01:31.4]} 26. Bc4 {[%clk 0:02:01.2]} 26... Qa4 {[%clk
0:01:23]} 27. Bg3 {[%clk 0:01:52]} 27... b5 {[%clk 0:01:18.4]} 28. Be2 {[%clk
0:01:51.3]} 28... Nb6 {[%clk 0:01:16.4]} 29. Qc3 {[%clk 0:01:47.7]} 29... Nfd5
{[%clk 0:01:14.3]} 30. Qc6 {[%clk 0:01:47.2]} 30... Qa2 {[%clk 0:00:38.6]} 31.
Bxb5 {[%clk 0:01:39.5]} 31... Qb1+ {[%clk 0:00:38.9]} 32. Kh2 {[%clk 0:01:39.3]}
32... Be7 {[%clk 0:00:34.8]} 33. Bc4 {[%clk 0:00:55.7]} 33... Nxc4 {[%clk
0:00:33.6]} 34. Qxc4 {[%clk 0:00:54.5]} 34... h4 {[%clk 0:00:34.2]} 35. Bf4
{[%clk 0:00:49.3]} 35... Nxf4 {[%clk 0:00:32.4]} 36. exf4 {[%clk 0:00:50.2]}
36... d5 {[%clk 0:00:32.1]} 37. Qc8+ {[%clk 0:00:45.2]} 37... Kg7 {[%clk
0:00:32.5]} 38. Ne3 {[%clk 0:00:43.1]} 38... Bxb4 {[%clk 0:00:24.2]} 39. Qb8
{[%clk 0:00:33.3]} 39... Qb2 {[%clk 0:00:23.3]} 40. Qe5+ {[%clk 0:00:33.6]}
40... Kf8 {[%clk 0:00:20.4]} 41. Nxd5 {[%clk 0:00:33.2]} 41... Kg8 {[%clk
0:00:16.9]} 42. Nf6+ {[%clk 0:00:32.9]} 42... Kf8 {[%clk 0:00:16.5]} 43. Nd7+
{[%clk 0:00:31.6]} 43... Kg8 {[%clk 0:00:17.1]} 44. Nf6+ {[%clk 0:00:28.6]}
44... Kf8 {[%clk 0:00:17.4]} 45. Nxe4 {[%clk 0:00:24.8]} 45... Bd2 {[%clk
0:00:12.8]} 46. Qd6+ {[%clk 0:00:17.5]} 46... Kg8 {[%clk 0:00:12.2]} 47. Qe5
{[%clk 0:00:16.8]} 47... Qc1 {[%clk 0:00:10.6]} 48. Nf6+ {[%clk 0:00:16.7]}
48... Kf8 {[%clk 0:00:10]} 49. Nd5 {[%clk 0:00:17]} 49... Kg8 {[%clk 0:00:09.3]}
50. Qf6 {[%clk 0:00:16.6]} 50... Qc4 {[%clk 0:00:06.7]} 51. Ne7+ {[%clk
0:00:16.7]} 51... Kh7 {[%clk 0:00:07.3]} 52. Qxh4+ {[%clk 0:00:12.5]} 52... Kg7
{[%clk 0:00:07.9]} 53. Qg5 {[%clk 0:00:12.1]} 53... Kf8 {[%clk 0:00:04.9]} 54.
Qe5 {[%clk 0:00:10.7]} 54... Bxf4+ {[%clk 0:00:01.8]} 55. Qxf4 {[%clk
0:00:10.5]} 55... Kxe7 {[%clk 0:00:02.7]} 56. Qe5+ {[%clk 0:00:10.8]} 56... Kf8
{[%clk 0:00:03]} 57. d5 {[%clk 0:00:10.6]} 57... Qc2 {[%clk 0:00:01.8]} 58. f4
{[%clk 0:00:09.4]} 1-0

[Event "Early-Titled-Tuesday-Blitz-February-06-2024"]
[Site "Chess.com"]
[Date "2024.02.06"]
[Round "8"]
[White "BestestBP"]
[Black "AccioChess"]
[Result "1/2-1/2"]
[WhiteElo "2252"]
[BlackElo "2388"]
[TimeControl "180+1"]
[EndTime "9:29:20 PST"]
[Termination "Game drawn by repetition"]

1. e4 {[%clk 0:03:00.9]} 1... c5 {[%clk 0:02:58.4]} 2. Nf3 {[%clk 0:03:00.6]}
2... Nc6 {[%clk 0:02:59.3]} 3. d4 {[%clk 0:03:01]} 3... cxd4 {[%clk 0:03:00.2]}
4. Nxd4 {[%clk 0:03:01.4]} 4... Nf6 {[%clk 0:03:00.8]} 5. Nc3 {[%clk 0:03:00.8]}
5... d6 {[%clk 0:03:01.4]} 6. Bb5 {[%clk 0:02:49.8]} 6... Bd7 {[%clk 0:03:00.9]}
7. O-O {[%clk 0:02:47.6]} 7... e6 {[%clk 0:03:00.7]} 8. Bxc6 {[%clk 0:02:30.7]}
8... bxc6 {[%clk 0:03:00]} 9. e5 {[%clk 0:02:31]} 9... dxe5 {[%clk 0:02:59.1]}
10. Nf3 {[%clk 0:02:31.2]} 10... e4 {[%clk 0:02:52.1]} 11. Ng5 {[%clk
0:02:26.5]} 11... Be7 {[%clk 0:02:49.2]} 12. Ngxe4 {[%clk 0:02:25.7]} 12... Nxe4
{[%clk 0:02:47.4]} 13. Nxe4 {[%clk 0:02:25.5]} 13... O-O {[%clk 0:02:48.3]} 14.
Be3 {[%clk 0:02:23]} 14... e5 {[%clk 0:02:47.6]} 15. Bc5 {[%clk 0:02:15.1]}
15... f5 {[%clk 0:02:44.4]} 16. Bxe7 {[%clk 0:01:40.4]} 16... Qxe7 {[%clk
0:02:45.3]} 17. Qd6 {[%clk 0:01:34.6]} 17... Qxd6 {[%clk 0:02:42.2]} 18. Nxd6
{[%clk 0:01:34.7]} 18... e4 {[%clk 0:02:36.4]} 19. Rad1 {[%clk 0:01:27.3]} 19...
Be6 {[%clk 0:02:35.1]} 20. b3 {[%clk 0:01:26.4]} 20... Rad8 {[%clk 0:02:33.6]}
21. c4 {[%clk 0:01:25.3]} 21... Rd7 {[%clk 0:02:32.3]} 22. Rd2 {[%clk
0:01:19.1]} 22... Rfd8 {[%clk 0:02:30.8]} 23. Rfd1 {[%clk 0:01:19.7]} 23... c5
{[%clk 0:02:26.2]} 24. Kf1 {[%clk 0:01:12.7]} 24... a6 {[%clk 0:02:03.8]} 25.
Ke1 {[%clk 0:01:06.8]} 25... Rb8 {[%clk 0:01:21.2]} 26. Nxe4 {[%clk 0:00:46.4]}
26... Re7 {[%clk 0:01:19.5]} 27. Rd8+ {[%clk 0:00:45.4]} 27... Rxd8 {[%clk
0:01:15.3]} 28. Rxd8+ {[%clk 0:00:46.3]} 28... Kf7 {[%clk 0:01:13.5]} 29. Ng5+
{[%clk 0:00:32.3]} 29... Kf6 {[%clk 0:01:12.9]} 30. Nxh7+ {[%clk 0:00:20.6]}
30... Ke5 {[%clk 0:01:11.1]} 31. Kd2 {[%clk 0:00:19.7]} 31... f4 {[%clk
0:01:10.2]} 32. Ng5 {[%clk 0:00:18.5]} 32... Bf5 {[%clk 0:01:07.7]} 33. Nf3+
{[%clk 0:00:16.6]} 33... Kf6 {[%clk 0:01:06.8]} 34. Rd5 {[%clk 0:00:15.2]} 34...
g5 {[%clk 0:01:05.6]} 35. h3 {[%clk 0:00:14.5]} 35... g4 {[%clk 0:00:52.9]} 36.
hxg4 {[%clk 0:00:14.2]} 36... Bxg4 {[%clk 0:00:53.8]} 37. Rxc5 {[%clk
0:00:14.1]} 37... Bf5 {[%clk 0:00:46.8]} 38. Rc6+ {[%clk 0:00:12.2]} 38... Kg7
{[%clk 0:00:47]} 39. Rxa6 {[%clk 0:00:09.9]} 39... Rd7+ {[%clk 0:00:47.9]} 40.
Kc3 {[%clk 0:00:10.2]} 40... Rd3+ {[%clk 0:00:47.8]} 41. Kb4 {[%clk 0:00:10.7]}
41... Rd1 {[%clk 0:00:47.6]} 42. Ne5 {[%clk 0:00:10.2]} 42... Rf1 {[%clk
0:00:46.2]} 43. f3 {[%clk 0:00:08.5]} 43... Rf2 {[%clk 0:00:46.1]} 44. Ra7+
{[%clk 0:00:08.2]} 44... Kf6 {[%clk 0:00:45.5]} 45. Nd7+ {[%clk 0:00:06.9]}
45... Kg5 {[%clk 0:00:44]} 46. a4 {[%clk 0:00:06.4]} 46... Rxg2 {[%clk
0:00:43.7]} 47. Nc5 {[%clk 0:00:06.4]} 47... Rf2 {[%clk 0:00:41.9]} 48. a5
{[%clk 0:00:05.7]} 48... Rxf3 {[%clk 0:00:39.8]} 49. a6 {[%clk 0:00:06.3]} 49...
Rf1 {[%clk 0:00:38.7]} 50. Rg7+ {[%clk 0:00:06.5]} 50... Kf6 {[%clk 0:00:38.1]}
51. a7 {[%clk 0:00:05.6]} 51... Ra1 {[%clk 0:00:37.1]} 52. Rc7 {[%clk
0:00:05.4]} 52... f3 {[%clk 0:00:35.3]} 53. Na4 {[%clk 0:00:05.8]} 53... Be4
{[%clk 0:00:34.6]} 54. Rc8 {[%clk 0:00:04.1]} 54... Kf7 {[%clk 0:00:32.8]} 55.
Rc7+ {[%clk 0:00:02.4]} 55... Kf6 {[%clk 0:00:32.8]} 56. Rc8 {[%clk 0:00:02.7]}
56... Kg7 {[%clk 0:00:32.3]} 57. Rc7+ {[%clk 0:00:02.8]} 57... Kf8 {[%clk
0:00:32.1]} 58. Rc8+ {[%clk 0:00:03.2]} 58... Ke7 {[%clk 0:00:32.3]} 59. Rc7+
{[%clk 0:00:03.9]} 59... Ke8 {[%clk 0:00:19.1]} 60. Rc8+ {[%clk 0:00:04.3]}
60... Kf7 {[%clk 0:00:19.2]} 61. Rc7+ {[%clk 0:00:04.7]} 61... Kf6 {[%clk
0:00:18.3]} 1/2-1/2

[Event "Early-Titled-Tuesday-Blitz-February-06-2024"]
[Site "Chess.com"]
[Date "2024.02.06"]
[Round "8"]
[White "maciek_92"]
[Black "secretsuperstar7"]
[Result "1-0"]
[WhiteElo "2780"]
[BlackElo "2521"]
[TimeControl "180+1"]
[EndTime "9:29:26 PST"]
[Termination "maciek_92 won on time"]

1. e4 {[%clk 0:03:00.9]} 1... c5 {[%clk 0:02:59.2]} 2. Nf3 {[%clk 0:03:01]} 2...
Nc6 {[%clk 0:02:58.3]} 3. c3 {[%clk 0:02:56.9]} 3... Nf6 {[%clk 0:02:57.1]} 4.
e5 {[%clk 0:02:57.3]} 4... Nd5 {[%clk 0:02:57.4]} 5. Bc4 {[%clk 0:02:57.4]} 5...
Nb6 {[%clk 0:02:57.1]} 6. Bb3 {[%clk 0:02:57.8]} 6... c4 {[%clk 0:02:57.4]} 7.
Bc2 {[%clk 0:02:58.5]} 7... d6 {[%clk 0:02:57.8]} 8. exd6 {[%clk 0:02:57.4]}
8... Qxd6 {[%clk 0:02:57.8]} 9. O-O {[%clk 0:02:57.6]} 9... Bg4 {[%clk
0:02:57.9]} 10. h3 {[%clk 0:02:50.3]} 10... Bh5 {[%clk 0:02:54.2]} 11. Re1
{[%clk 0:02:47.9]} 11... O-O-O {[%clk 0:02:53.8]} 12. b3 {[%clk 0:02:47.8]}
12... Ne5 {[%clk 0:02:41.9]} 13. Rxe5 {[%clk 0:02:38.8]} 13... Bxf3 {[%clk
0:02:36.4]} 14. Qe1 {[%clk 0:02:39.5]} 14... Bc6 {[%clk 0:02:33.4]} 15. Na3
{[%clk 0:02:36.8]} 15... f6 {[%clk 0:02:19]} 16. Ra5 {[%clk 0:02:34.7]} 16...
Kb8 {[%clk 0:02:12.7]} 17. bxc4 {[%clk 0:02:27.6]} 17... Qc7 {[%clk 0:02:04.9]}
18. c5 {[%clk 0:02:24.4]} 18... Nd5 {[%clk 0:02:00.3]} 19. Nc4 {[%clk
0:02:23.1]} 19... Nf4 {[%clk 0:01:56.7]} 20. Be4 {[%clk 0:02:22]} 20... Nd3
{[%clk 0:01:33.5]} 21. Qe2 {[%clk 0:02:04.4]} 21... Bxe4 {[%clk 0:01:28.5]} 22.
Qxe4 {[%clk 0:02:02.3]} 22... Nxc5 {[%clk 0:01:26.3]} 23. Qe3 {[%clk 0:01:49.4]}
23... e5 {[%clk 0:01:23.4]} 24. d4 {[%clk 0:01:48.5]} 24... Na6 {[%clk
0:01:05.7]} 25. Rxa6 {[%clk 0:01:01.9]} 25... Qxc4 {[%clk 0:00:54.7]} 26. Ra5
{[%clk 0:01:00.7]} 26... exd4 {[%clk 0:00:47.6]} 27. Qg3+ {[%clk 0:00:44.2]}
27... Bd6 {[%clk 0:00:42]} 28. Bf4 {[%clk 0:00:42.6]} 28... Bxf4 {[%clk
0:00:40.2]} 29. Qxf4+ {[%clk 0:00:42.7]} 29... Qc7 {[%clk 0:00:31.2]} 30. Qxc7+
{[%clk 0:00:41.7]} 30... Kxc7 {[%clk 0:00:32.1]} 31. cxd4 {[%clk 0:00:37.6]}
31... Rxd4 {[%clk 0:00:26.4]} 32. Rxa7 {[%clk 0:00:36.3]} 32... Rhd8 {[%clk
0:00:16]} 33. Kh2 {[%clk 0:00:36]} 33... Rd2 {[%clk 0:00:15.8]} 34. Rb1 {[%clk
0:00:33.6]} 34... Rxf2 {[%clk 0:00:15.8]} 35. Rbxb7+ {[%clk 0:00:26.1]} 35...
Kc6 {[%clk 0:00:15.9]} 36. Rxg7 {[%clk 0:00:26.3]} 36... Rdd2 {[%clk 0:00:15.5]}
37. a4 {[%clk 0:00:25.4]} 37... f5 {[%clk 0:00:13.1]} 38. Ra6+ {[%clk
0:00:05.3]} 38... Kc5 {[%clk 0:00:11.9]} 39. Rh6 {[%clk 0:00:01.8]} 39... f4
{[%clk 0:00:11.2]} 40. Rhxh7 {[%clk 0:00:02.3]} 40... f3 {[%clk 0:00:11]} 41.
Rh5+ {[%clk 0:00:02.9]} 41... Kd4 {[%clk 0:00:09.9]} 42. Rhg5 {[%clk 0:00:03.8]}
42... Kc4 {[%clk 0:00:04.6]} 43. Rg4+ {[%clk 0:00:03.7]} 43... Kc5 {[%clk
0:00:03.5]} 44. h4 {[%clk 0:00:04.2]} 44... Kb6 {[%clk 0:00:02.2]} 45. h5 {[%clk
0:00:03.4]} 45... fxg2 {[%clk 0:00:02.5]} 46. Rxg2 {[%clk 0:00:03.4]} 46...
Rxg2+ {[%clk 0:00:02.7]} 47. Rxg2 {[%clk 0:00:03.4]} 47... Rd5 {[%clk
0:00:03.3]} 48. Rg6+ {[%clk 0:00:03.8]} 48... Ka5 {[%clk 0:00:03.1]} 49. h6
{[%clk 0:00:04]} 49... Rh5+ {[%clk 0:00:03.1]} 50. Kg3 {[%clk 0:00:04.6]} 50...
Kxa4 {[%clk 0:00:03]} 51. Rg4+ {[%clk 0:00:05]} 51... Kb5 {[%clk 0:00:02.6]} 52.
Rh4 {[%clk 0:00:05.9]} 52... Rg5+ {[%clk 0:00:03]} 53. Kf4 {[%clk 0:00:06.3]}
53... Rg8 {[%clk 0:00:02.9]} 54. h7 {[%clk 0:00:06.7]} 54... Rh8 {[%clk
0:00:03.1]} 55. Kg5 {[%clk 0:00:07.4]} 55... Kc6 {[%clk 0:00:03.6]} 56. Kg6
{[%clk 0:00:08.1]} 56... Kd6 {[%clk 0:00:03.1]} 57. Kg7 {[%clk 0:00:09]} 57...
Rd8 {[%clk 0:00:01.4]} 58. h8=Q {[%clk 0:00:09.9]} 58... Rd7+ {[%clk 0:00:01.9]}
59. Kf6 {[%clk 0:00:09.6]} 59... Kd5 {[%clk 0:00:01.4]} 60. Qa8+ {[%clk
0:00:09]} 1-0